Cogmind - Beta 14 @@@ ROGUE MODE // 2024.12.31 @ 01:51:28 Player: Jirybot Result: Core destroyed Performance ------------- Evolutions (2) 1000 Regions Visited (6) 1200 Robots Destroyed (92) 460 Value Destroyed (2534) 2534 Prototype IDs (3) 60 Alien Tech Used (0) 0 Bonus (588) 588 TOTAL SCORE: 5842 Bonus ------- High Alert Combat Kills 366 Follower Combat Kills 42 Entered Garrisons 200 Friendly Fire -20 Cogmind --------- Core Integrity 0/550 Matter 272/300 Energy 5/100 System Corruption 4% Temperature Critical (514) Movement Core (500) Ox9 Location -8/Garrison Parts ------- > --- POWER (2) -------- (None) > --- PROPULSION (3) --- (None) > --- UTILITY (4) ------ Large Storage Unit > --- WEAPON (2) ------- Gatling Laser Gatling Laser > --- INVENTORY (15) --- Improved Cooling System Improved Cooling System Improved Cooling System Large Storage Unit Peak State ------------ > --- POWER ------------ Light Nuclear Core Light Nuclear Core > --- PROPULSION ------- Light Treads Light Treads Light Treads > --- UTILITY ---------- Cooling System Large Storage Unit Improved Utility Shielding Improved Utility Shielding > --- WEAPON ----------- Gatling Laser Gatling Laser > --- INVENTORY -------- Light Nuclear Core Light Nuclear Core Light Treads Light Treads Light Treads Improved Cooling System Improved Cooling System Improved Cooling System Large Storage Unit Gatling Laser Gatling Laser [Rating: 29] Favorites ----------- Power Light Nuclear Core Engine Ion Engine Power Core Light Nuclear Core Propulsion Light Treads Treads Light Treads Leg Aluminum Leg Wheel Wheel Utility Large Storage Unit Device Improved Heat Sink Storage Large Storage Unit Protection Improved Utility Shielding Weapon Particle Cannon Energy Gun Field Laser Energy Cannon Particle Cannon Ballistic Gun Light Assault Rifle Ballistic Cannon Assault Cannon Launcher Rocket Launcher Build | -11 -10 -10 -10 -9 -8 -8 ------- Run | Yrd Mat Min Exi Min Mat Gar Slots Evolved 4 | . . . . . 4 . Power 1 | . . . . . 1 . Propulsion 1 | . . . . . 1 . Utility 2 | . . . . . 2 . Weapon . | . . . . . . . Parts Attached 68 | 6 6 7 3 5 33 8 Power 15 | 1 . 2 . 1 9 2 Engine 5 | 1 . 2 . 1 1 . Core 10 | . . . . . 8 2 Reactor . | . . . . . . . Propulsion 24 | 2 2 1 2 2 12 3 Treads 20 | 2 2 1 . . 12 3 Leg 2 | . . . . 2 . . Wheel 2 | . . . 2 . . . Hover . | . . . . . . . Flight . | . . . . . . . Utility 12 | 1 2 1 1 1 5 1 Device 4 | . 1 1 . 1 1 . Storage 4 | 1 1 . 1 . 1 . Processor . | . . . . . . . Hackware . | . . . . . . . Protection 4 | . . . . . 3 1 Artifact . | . . . . . . . Weapon 17 | 2 2 3 . 1 7 2 Energy Gun 10 | 1 . 1 . . 6 2 Energy Cannon 3 | . 2 1 . . . . Ballistic Gun 1 | 1 . . . . . . Ballistic Cannon 2 | . . 1 . 1 . . Launcher 1 | . . . . . 1 . Special Weapon . | . . . . . . . Impact Weapon . | . . . . . . . Slashing Weapon . | . . . . . . . Piercing Weapon . | . . . . . . . Special Melee Weapon . | . . . . . . . Unidentified Prototypes 3 | . . 1 . . 2 . Corrupted Parts 1 | . . . . . . 1 System Corruption 4 | . . . . . . 4 Parts Lost 33 | . . 4 . 4 13 12 Power 9 | . . 1 . 1 3 4 Propulsion 12 | . . 1 . 2 4 5 Utility 4 | . . 1 . 1 1 1 Weapon 8 | . . 1 . . 5 2 Highest Loss Streak 12 | . . 2 . 4 5 12 To Critical Strikes . | . . . . . . . Average Slot Usage (%) 96 | . 98 95 99 82 96 83 Engine 10 | . 14 13 14 12 . . Core 4 | . . . . . 17 13 Treads 18 | . 28 24 . . 20 24 Leg 2 | . . . . 19 4 . Wheel 4 | . . . 27 1 . . Device 14 | . 12 14 14 6 18 7 Storage 12 | . 14 14 14 14 9 9 Protection 2 | . . . . . 8 12 Energy Gun 7 | . . 2 14 14 13 16 Energy Cannon 12 | . 27 23 . . . . Ballistic Cannon 4 | . . 2 14 12 3 . Peak Build Rating 29 | 6 12 21 22 22 27 29 Average Rating 17 | 4 11 15 21 11 23 24 On Entrance 14 | . 6 12 21 22 13 27 Naked Turns . | . . . . . . . Heaviest Build 48 | 13 24 35 45 35 48 44 Greatest Support 60 | 40 40 40 20 20 60 60 Greatest Overweight (x) 9 | . . 1 2 9 2 . Average Overweight (x) . | . . . 1 1 . . Largest Inventory Capacity 15 | 8 10 10 15 15 15 15 Average Capacity 11 | 6 8 10 13 15 15 15 Most Carried 15 | 4 8 10 9 12 15 12 Average Carried 9 | 2 7 8 7 9 12 9 Final Capacity 15 | 8 10 10 15 15 15 15 Final Carried 12 | 4 8 9 8 12 12 4 Class Distribution -------------------- 82% | Mutant 17% | Scavenger-Mutant Dominant Class ---------------- Mutant | -10/Materials Mutant | -10/Mines Mutant | -10/Exiles Mutant | -9/Mines Mutant | -8/Materials Mutant | -8/Garrison Resources | -11 -10 -10 -10 -9 -8 -8 ----------- Run | Yrd Mat Min Exi Min Mat Gar Matter Collected 1222 | 171 183 45 . 207 604 12 Remotely . | . . . . . . . Salvage Created 3246 | . 565 317 . 139 2126 99 Parts 192 | . 38 21 . 10 122 1 Haulers Intercepted 8 | . 2 . . . 6 . Recyclers Shooed 6 | . 1 3 . 1 1 . Parts Field Recycled . | . . . . . . . Retrieved Matter . | . . . . . . . Parts Self-Destructed . | . . . . . . . Prevented . | . . . . . . . Kills | -11 -10 -10 -10 -9 -8 -8 ------- Run | Yrd Mat Min Exi Min Mat Gar Combat Hostiles Destroyed 65 | . 11 9 . 4 39 2 Guns 30 | . . . . 2 26 2 Cannons 25 | . 11 9 . 2 3 . AOE 8 | . . . . . 8 . Classes Destroyed 12 | . 5 2 . 2 3 . Worker 5 | . 1 . . . 4 . Builder 2 | . . . . 1 1 . Hauler 8 | . 2 . . . 6 . Recycler 5 | . . 1 . . 4 . Operator 1 | . . . . . 1 . Watcher 6 | . 3 . . . 3 . Swarmer 16 | . 3 6 . . 7 . Grunt 34 | . 8 1 . 3 22 . Brawler 3 | . . . . . 3 . Duelist 3 | . . . . 1 2 . Protector 2 | . . . . . 2 . Sentry 7 | . . 2 . . 3 2 Best Kill Streak 10 | . 3 3 . 2 10 2 Combat Bots Only 10 | . 3 2 . 2 10 2 Max Kills in Single Turn 2 | . 1 1 . 1 2 1 Gunslinging . | . . . . . . . Exploded 2 | . . . . . 2 . Melee . | . . . . . . . Uniques/NPCs Destroyed . | . . . . . . . Combat | -11 -10 -10 -10 -9 -8 -8 -------- Run | Yrd Mat Min Exi Min Mat Gar Hostile Shots Fired 393 | . 54 75 . 16 169 79 Missed 87 | . 8 17 . . 40 22 Damage Taken 5032 | . 481 679 . 421 2059 1392 Core 862 | . 48 119 . 77 262 356 Absorbed by Shields . | . . . . . . . Redirected to Shielding 102 | . . . . . 59 43 Core Remaining (%) 51 | 100 . . . 2 . . Volleys Fired 230 | . 40 29 . 20 127 14 Largest 2 | . 2 2 . 2 2 2 Hottest 160 | . 136 136 . 107 160 160 Shots Fired 442 | . 78 58 . 34 245 27 Gun 247 | . . . . 20 200 27 Cannon 179 | . 78 58 . 14 29 . Launcher 16 | . . . . . 16 . Special . | . . . . . . . Kinetic 43 | . . . . 14 29 . Thermal 330 | . 78 58 . 20 147 27 Explosive 16 | . . . . . 16 . Electromagnetic 53 | . . . . . 53 . Robot Hit Streak 17 | . 15 7 . 17 9 16 Robot Miss Streak 4 | . 3 3 . 4 3 4 Penetration Max . | . . . . . . . Secondary Targets 5 | . . . . . 3 2 Max Gunslinging Chain 1 | . . . . . 1 1 Shots Hit Robots 278 | . 39 32 . 23 158 26 Core Hits 159 | . 19 11 . 7 107 15 Critical Kills . | . . . . . . . Critical Parts Destroyed . | . . . . . . . Critical Strikes 10 | . . . . . 10 . Burn 7 | . . . . . 7 . Blast 1 | . . . . . 1 . Corrupt 2 | . . . . . 2 . Melee Attacks . | . . . . . . . Impact . | . . . . . . . Slashing . | . . . . . . . Piercing . | . . . . . . . Sneak Attacks . | . . . . . . . Combat Hostiles . | . . . . . . . Follow-up Attacks . | . . . . . . . Damage Inflicted 7010 | . 841 690 . 457 4220 802 Guns 3505 | . . . . 201 2502 802 Cannons 2111 | . 841 677 . 256 337 . Explosions 1375 | . . . . . 1375 . Melee . | . . . . . . . Ramming 19 | . . 13 . . 6 . Kinetic 593 | . . . . 256 337 . Thermal 4474 | . 841 677 . 201 1953 802 Explosive 1270 | . . . . . 1270 . Electromagnetic 654 | . . . . . 654 . Impact . | . . . . . . . Slashing . | . . . . . . . Piercing . | . . . . . . . Highest Corruption 4 | . . . . . . 4 Average Corruption 4 | . . . . . . 4 Corruption Purged . | . . . . . . . Corruption Blocked . | . . . . . . . Overload Shots . | . . . . . . . Overflow Damage 18 | . 9 2 . . 7 . Projectiles 17 | . 9 2 . . 6 . Explosions 1 | . . . . . 1 . Melee . | . . . . . . . Knockbacks 8 | . . . . 3 5 . Impact . | . . . . . . . Kinetic 8 | . . . . 3 5 . Secondary . | . . . . . . . Self-Inflicted Damage 131 | . . . . . 131 . Shots 5 | . . . . . 5 . Rammed 3 | . . 1 . . 2 . Targets Rammed 3 | . . 1 . . 2 . Kicked . | . . . . . . . Crushed . | . . . . . . . Highest Temperature 537 | . 489 405 . 328 144 537 Average Temperature 101 | . 118 117 . 129 26 231 Received Heat Transfer 1623 | . 165 117 . 30 990 321 Effects 11 | . 5 3 . 1 . 2 Shutdowns 3 | . 1 2 . . . . Interference 2 | . 2 . . . . . Matter Decay 2 | . 1 1 . . . . Short Circuit 1 | . . . . . . 1 Damage (minor) 2 | . 1 . . 1 . . Damage (core) 1 | . . . . . . 1 Siege Activations . | . . . . . . . Robots Corrupted . | . . . . . . . Combat Hostiles . | . . . . . . . Parts Fried . | . . . . . . . Impact Corruptions . | . . . . . . . Robots Melted 2 | . . . . . 2 . Combat Hostiles 2 | . . . . . 2 . Parts Melted 5 | . 1 1 . . 3 . Heat Transferred 9046 | . 1517 1221 . 444 4311 1553 Parts Sabotaged . | . . . . . . . Parts Stolen . | . . . . . . . Parts Stripped . | . . . . . . . Power Chain Reactions 2 | . . . . . 2 . Alert | -11 -10 -10 -10 -9 -8 -8 ------- Run | Yrd Mat Min Exi Min Mat Gar Peak Influence 921 | . 241 88 . 102 921 550 Initial 510 | . . 4 . . 39 510 Average 150 | . 47 29 . 77 357 506 Maximum Alert Level 3 | . 1 . . . 3 2 Low Security (%) 77 | 100 96 100 . 100 40 . Level 1 8 | . 3 . . . 22 . Level 2 7 | . . . . . 16 100 Level 3 6 | . . . . . 21 . Level 4 . | . . . . . . . Level 5 . | . . . . . . . High Security . | . . . . . . . Max Security . | . . . . . . . Squads Dispatched 9 | . 2 . . . 7 . Investigation 2 | . 2 . . . . . Extermination . | . . . . . . . Reinforcement 5 | . . . . . 5 . Assault 2 | . . . . . 2 . Garrison . | . . . . . . . Intercept . | . . . . . . . Searches Triggered . | . . . . . . . Construction Impeded 1 | . . . . . 1 . Haulers Reinforced . | . . . . . . . Active Scanning Responses . | . . . . . . . Cargo Convoy Interrupts . | . . . . . . . Stealth | -11 -10 -10 -10 -9 -8 -8 --------- Run | Yrd Mat Min Exi Min Mat Gar Distress Signals 4 | . . . . . 4 . Communications Jammed . | . . . . . . . Distress Signals . | . . . . . . . Times Spotted 104 | . 16 18 . 4 61 5 Peak Tracking Total 7 | . 3 5 . 2 7 5 Tactical Retreats 5 | . 1 2 . . 2 . Traps | -11 -10 -10 -10 -9 -8 -8 ------- Run | Yrd Mat Min Exi Min Mat Gar Traps Triggered 6 | . 2 2 . . 1 1 Indirectly . | . . . . . . . Trap Hack Attempts . | . . . . . . . Triggered . | . . . . . . . Disarmed . | . . . . . . . Reprogrammed . | . . . . . . . Reused . | . . . . . . . Traps Extracted . | . . . . . . . Installed . | . . . . . . . Triggered . | . . . . . . . Machines | -11 -10 -10 -10 -9 -8 -8 ---------- Run | Yrd Mat Min Exi Min Mat Gar Machines Disabled 7 | . . 1 . 1 5 . Max in Single Turn 2 | . . 1 . 1 2 . Machines Repaired . | . . . . . . . Machines Dismantled . | . . . . . . . Machines Sabotaged . | . . . . . . . Overloaded Fab Kills . | . . . . . . . Hacking | -11 -10 -10 -10 -9 -8 -8 --------- Run | Yrd Mat Min Exi Min Mat Gar Machines Accessed 20 | . 9 2 4 . 5 . Terminals 11 | . 8 . . . 3 . Fabricators . | . . . . . . . Repair Stations . | . . . . . . . Recycling Units 1 | . 1 . . . . . Scanalyzers 1 | . . . . . 1 . Garrison Access 1 | . . . . . 1 . Total Hacks 45 | . 28 2 4 . 11 . Successful 28 | . 17 2 4 . 5 . Failed 17 | . 11 . . . 6 . Catastrophic 1 | . . . . . 1 . Database Lockouts . | . . . . . . . Manual 41 | . 23 . 8 . 10 . Terminals 34 | . 26 . . . 8 . Fabricators . | . . . . . . . Repair Stations . | . . . . . . . Recycling Units 2 | . 2 . . . . . Scanalyzers 2 | . . . . . 2 . Garrison Access 1 | . . . . . 1 . Terminal Hacks 14 | . 7 2 4 . 1 . Record 4 | . . . 4 . . . Robot Analysis 1 | . 1 . . . . . Open Door 2 | . . 2 . . . . Level Access Points 1 | . 1 . . . . . Branch Access Points 1 | . 1 . . . . . Emergency Access Points 1 | . 1 . . . . . Terminal Index 1 | . 1 . . . . . Alert Level 2 | . 2 . . . . . Unreport Threat 1 | . . . . . 1 . Fabricator Hacks . | . . . . . . . Repair Station Hacks . | . . . . . . . Recycling Unit Hacks 1 | . 1 . . . . . Report Inventory 1 | . 1 . . . . . Scanalyzer . | . . . . . . . Garrison Access Hacks 1 | . . . . . 1 . Unlock Access 1 | . . . . . 1 . Unauthorized Hacks 12 | . 9 . . . 3 . Terminals 12 | . 9 . . . 3 . Assimilate 3 | . 2 . . . 1 . Botnet 9 | . 7 . . . 2 . Fabricators . | . . . . . . . Repair Stations . | . . . . . . . Recycling Units . | . . . . . . . Scanalyzers . | . . . . . . . Garrison Access . | . . . . . . . Data Cores Recovered . | . . . . . . . Used . | . . . . . . . Hacking Detections 13 | . 8 . . . 5 . Full Trace Events . | . . . . . . . Feedback Events . | . . . . . . . Feedback Blocked . | . . . . . . . Robot Schematics Acquired . | . . . . . . . Robots Built . | . . . . . . . Authchips . | . . . . . . . Time . | . . . . . . . Total Robot Build Rating . | . . . . . . . Part Schematics Acquired . | . . . . . . . Parts Built . | . . . . . . . Authchips . | . . . . . . . Time . | . . . . . . . Total Part Build Rating . | . . . . . . . Parts Repaired . | . . . . . . . Time . | . . . . . . . Parts Recycled . | . . . . . . . Recycled Matter . | . . . . . . . Retrieved Matter . | . . . . . . . Retrieved Components . | . . . . . . . Parts Scanalyzed . | . . . . . . . Part Schematics Acquired . | . . . . . . . Parts Damaged . | . . . . . . . Bothacking | -11 -10 -10 -10 -9 -8 -8 ------------ Run | Yrd Mat Min Exi Min Mat Gar Used RIF Installer . | . . . . . . . Robots Hacked . | . . . . . . . Non-combat . | . . . . . . . Combat . | . . . . . . . Robot Hacks Applied . | . . . . . . . Relay Couplers Released . | . . . . . . . Fabnet Peak Effective % . | . . . . . . . Robots Rewired . | . . . . . . . Allies Hacked . | . . . . . . . Hacks Repelled . | . . . . . . . Allies | -11 -10 -10 -10 -9 -8 -8 -------- Run | Yrd Mat Min Exi Min Mat Gar Total Allies 3 | . . 3 . . . . Largest Group 2 | . . 2 . . . . Highest-Rated Group 50 | . . 50 . . . . Highest-Rated Ally 31 | . . 31 . . . . Total Orders 3 | . . 3 . . . . RETURN 3 | . . 3 . . . . Ally Attacks 14 | . . 14 . . . . Total Damage 176 | . . 176 . . . . Kills 2 | . . 2 . . . . Allies Corrupted . | . . . . . . . Allies Melted . | . . . . . . . Intel | -11 -10 -10 -10 -9 -8 -8 ------- Run | Yrd Mat Min Exi Min Mat Gar Robot Analysis Total 1 | . 1 . . . . . Derelict Logs Recovered 1 | . . 1 . . . . Drone Launches 11 | . . 11 . . . . Drone Recoveries 10 | . . 10 . . . . Exploration | -11 -10 -10 -10 -9 -8 -8 ------------- Run | Yrd Mat Min Exi Min Mat Gar Turns Passed 5870 | 64 1460 1444 904 334 1552 112 Spaces Moved 3067 | 33 782 754 860 118 484 36 Core 4 | 1 . . . 3 . . Treads 1973 | 32 782 754 4 . 365 36 Legs 234 | . . . . 115 119 . Wheels 856 | . . . 856 . . . Hover . | . . . . . . . Flight . | . . . . . . . Fastest Speed 50 | 50 160 160 95 190 160 160 Average Speed 159 | 156 160 176 104 224 212 160 Slowest Speed 500 | 160 160 240 240 500 320 160 Overloaded Moves . | . . . . . . . Propulsion Burnouts . | . . . . . . . Robots Hopped . | . . . . . . . Cave-ins Triggered . | . . . . . . . Exploration Rate (%) 52 | 4 93 98 92 25 46 7 Regions Visited 6 Branch Regions 3 Pre-discovered Areas . | . . . . . . . Known Exits Taken 2 | . 1 . . . 1 . Unknown Exits Taken 4 | 1 . 1 1 1 . . Scrap Searched 4 | . . 2 . 2 . . Spaces Dug . | . . . . . . . Terrain Destroyed 98 | . . . . 2 96 . Melee . | . . . . . . . Projectile 7 | . . . . 2 5 . AOE 91 | . . . . . 91 . Terrain Rammed . | . . . . . . . Walls Destroyed . | . . . . . . . Machines Disabled . | . . . . . . . Actions | -11 -10 -10 -10 -9 -8 -8 --------- Run | Yrd Mat Min Exi Min Mat Gar Total 3608 | 42 914 814 863 151 765 59 Wait 163 | . 76 14 . 4 69 . Move 3062 | 32 781 753 859 117 484 36 Hop . | . . . . . . . Pick Up 46 | 4 5 5 . 5 27 . Fast Attach 22 | 6 3 2 . 4 7 . Attach 31 | . . 3 2 1 17 8 Detach . | . . . . . . . Swap 15 | . 3 2 1 . 9 . Drop 36 | . 6 5 1 . 23 1 Fire 230 | . 40 29 . 20 127 14 Melee . | . . . . . . . Ram . | . . . . . . . Kick . | . . . . . . . Crush 3 | . . 1 . . 2 . Escape Stasis . | . . . . . . . Rewire . | . . . . . . . Trap . | . . . . . . . Miscellaneous . | . . . . . . . Route ------- -11/Scrapyard -10/Materials (discovered 6 exits: *Mat x3 / *Min x2 / [*Sub]) -10/Mines (discovered 3 exits: *Mat x2 / *Exi) -10/Exiles (discovered 2 exits: [*Min x2]) -9/Mines -8/Materials (discovered 2 exits: [*Fac] / Gar) -8/Garrison History --------- Turn | Location | Event 33 | -11/Scrapyard | Discovered new exit (range 16) 65 | -11/Scrapyard | Entered Materials 314 | -10/Materials | Build established: Mutant 389 | -10/Materials | Discovered new exit (range 14) 480 | -10/Materials | Discovered new exit (range 16) 906 | -10/Materials | Discovered new exit (range 16) 1074 | -10/Materials | Discovered new exit (range 7) 1218 | -10/Materials | Discovered new exit (range 10) 1374 | -10/Materials | Discovered new exit (range 7) 1394 | -10/Materials | Identified exit to Mines 1394 | -10/Materials | Identified exit to Materials 1525 | -10/Materials | Entered Mines 1731 | -10/Mines | Discovered exit to Materials (range 16) 1737 | -10/Mines | Found a hidden stash of uninstalled traps 1768 | -10/Mines | Found the Drone Emporium 1779 | -10/Mines | Found Prototype Device 1966 | -10/Mines | Build established: Scavenger-Mutant 1984 | -10/Mines | Learned 2 Materials zone layouts 2222 | -10/Mines | Discovered exit to Materials (range 5) 2285 | -10/Mines | Identified Splice Drone Bay 2586 | -10/Mines | Core integrity fell below 50% 2600 | -10/Mines | Build established: Mutant 2693 | -10/Mines | Met a Derelict who couldn't figure out how to use a Trap Extractor 2959 | -10/Mines | Deemed a non-threat by the Exiles lab entrance 2959 | -10/Mines | Discovered new exit (range 5) 2969 | -10/Mines | Entered Exiles 2969 | -10/Exiles | Found Exiles lab abandoned 2991 | -10/Exiles | Discovered new exit (range 15) 3325 | -10/Exiles | Discovered new exit (range 14) 3873 | -10/Exiles | Entered Mines 3886 | -9/Mines | Core integrity fell below 20% 3931 | -9/Mines | Met a Derelict bent on vengeance 3933 | -9/Mines | Lost 4 parts (1p2n1u) 4125 | -9/Mines | Received a Rocket Launcher from a helpful Derelict 4131 | -9/Mines | Discovered new exit (range 8) 4207 | -9/Mines | Entered Materials 4207 | -8/Materials | Evolved 4 slots: Power x1, Propulsion x1, Utility x2 5242 | -8/Materials | Discovered new exit (range 15) 5272 | -8/Materials | Lost 3 parts (1p2n) 5407 | -8/Materials | First assault squad dispatched 5527 | -8/Materials | Lost 5 parts (2p1n2w) 5549 | -8/Materials | Destroyed 10 combat bots 5759 | -8/Materials | Identified exit to Garrison 5759 | -8/Materials | Entered Garrison 5819 | -8/Garrison | Spotted B-75 Beast 5820 | -8/Garrison | Core integrity fell below 50% 5862 | -8/Garrison | Core integrity fell below 20% 5872 | -8/Garrison | Core destroyed Last Messages --------------- 05843_ Lgt. Nuclear Core destroyed. 05845_ Integrated Corrupted Lgt. Nuclear Core (+4). 05845_ Complication: Lgt. Treads rejected. 05845_ Complication: Cooling System rejected. 05845_ Complication: Imp. Utility Shielding rejected. 05849_ Gatling Laser destroyed. 05851_ Critical hit (Burn: +37). 05852_ Lgt. Treads destroyed. 05857_ Acquired 12 matter. 05858_ Lgt. Nuclear Core destroyed. 05864_ B-75 Beast heat damages Lyr. Medium Armor Plating. 05865_ Lgt. Treads destroyed. 05868_ Gatling Laser destroyed. 05870_ Gatling Laser broken. 05870_ Overheating: Short circuit. 05871_ Lgt. Treads destroyed. 05872_ Overheating: Core damaged (-71). Map ----- +----------------------------------------------------+ | ???????????????????????#"""#?????????????????????? | | ???????????????????????#" "#?????????????????????? | | ???????????????????????#" "#?????????????????????? | | ???????????????????????#" "#?????????????????????? | | ???????????????????????#^ #?????????????????????? | | ???????????????????????## ##?????????????????????? | | ??# #################### ##?????????????????????? | | ??# ! #?????????????????????? | | ??# #?????????????????????? | | ????######### ######### #?????????????????????? | | ????????????# #???????# #?????????????????????? | | ????????????#####???????# #?????????????????????? | | ????????????????????????# #?????????????????????? | | ????????????????????????# #?????????????????????? | | ????????????????????????# #?????????????????????? | | ????????????????????????# #?????????????????????? | | ????????????????????????# #?????????????????????? | | ????????????????????????# #?????????????????????? | | ????????????????????????# #?????????????????????? | | ????????????????????????# #?????????????????????? | | ????????????????????????# #?????????????????????? | | ????????????????????????# #?????????????????????? | | ????????????????????????# #?????????????????????? | | ????????????????????????# #?????????????????????? | | ????????????????????????#%%#?????????????????????? | | ????????????????????????#@ #?????????????????????? | | ????????????????????????#=!#?????????????????????? | | ????????????????????????#!%%#????????????????????? | | ????????????????????????#%=BB ???????????????????? | | ????????????????????????# BB ?????????????????? | | ????????????????????????##g######????????????????? | | ??????????????????????????g#?????????????????????? | | ?????????????????????????? ?????????????????????? | | ??????????????????????????##?????????????????????? | | ?????????????????????????????????????????????????? | | ?????????????????????????????????????????????????? | | ?????????????????????????????????????????????????? | | ?????????????????????????????????????????????????? | | ?????????????????????????????????????????????????? | | ?????????????????????????????????????????????????? | | ?????????????????????????????????????????????????? | | ?????????????????????????????????????????????????? | | ?????????????????????????????????????????????????? | | ?????????????????????????????????????????????????? | | ?????????????????????????????????????????????????? | | ?????????????????????????????????????????????????? | | ?????????????????????????????????????????????????? | | ?????????????????????????????????????????????????? | | ?????????????????????????????????????????????????? | | ?????????????????????????????????????????????????? | +----------------------------------------------------+ Best States ------------- Heat Dissipation 53 Energy Generation 23 Energy Capacity 310 Matter Stores 300 Matter Capacity 300 Sight Range 16 Robot Scan Range 14 Terrain Scan Density 10 Armor Coverage 225 Utility Shielding 66 Evasion (%) 41 Recoil Reduction 3 Item Schematics ----------------- None Robot Schematics ------------------ None Fabricated ------------ Nothing Alien Tech Used ----------------- None Achievements -------------- Error 47 Release The Drones! Challenges ------------ None Game ------ Seed FortressXenonCutter Manual? 0 Play Time 00:54:13 Cumulative 14.6 hours Start 2024.12.31 @ 00:47:25 End 2024.12.31 @ 01:51:28 Sessions 1 Manual Loads 0 Difficulty Rogue Special Mode None Game No. 15 Rogue 15 Adventurer 0 Explorer 0 Win Type - Total 0 Types 0/0/0/0/0/0/0/0/0 Lore% 11 Gallery% 15 Achievement% 19 Wizard Run 0 Options --------- Layout 1 ASCII 0 Keyboard 0 Movement Mouse Keybinds 0 Fullscreen 2 Font 24/Smallcaps Map View 50x35 Zoom Use 0% Tactical HUD 1 Map Filters NONE Filters NONE Steam 1 RUN: 946a6dbc-60b4-4d9d-91c7-4edd6d76d6fb